[Event "Titled Tuesday Blitz July 11 Late 2023"]
[White "Prieto Aranguren, Alain"]
[Black "Jarovinsky, Alexey"]
[WhiteFideId "2268906"]
[BlackFideId "14115131"]
[WhiteElo "2406"]
[BlackElo "2717"]
[Result "0-1"]
[Round "1"]
[TimeControl "180+2"]
[Date "2023.07.11"]
[WhiteClock "0:00:25"]
[BlackClock "0:00:20"]
[Board "85"]

1. e4 {[%clk 0:02:59]}  Nc6 {[%clk 0:02:59]} 2. Nf3 {[%clk 0:02:59]}  d6 {[%clk 0:02:58]} 3. d4 {[%clk 0:02:59]}  Nf6 {[%clk 0:02:59]} 4. Nc3 {[%clk 0:02:59]}  a6 {[%clk 0:02:57]} 5. Be3 {[%clk 0:02:58]}  Bg4 {[%clk 0:02:40]} 6. h3 {[%clk 0:02:53]}  Bh5 {[%clk 0:02:32]} 7. Be2 {[%clk 0:02:41]}  Bg6 {[%clk 0:02:22]} 8. Bd3 {[%clk 0:02:33]}  e5 {[%clk 0:02:20]} 9. O-O {[%clk 0:02:30]}  Be7 {[%clk 0:02:15]} 10. d5 {[%clk 0:02:16]}  Nb8 {[%clk 0:02:13]} 11. Nh2 {[%clk 0:02:16]}  Nbd7 {[%clk 0:02:08]} 12. f4 {[%clk 0:02:14]}  exf4 {[%clk 0:02:06]} 13. Bxf4 {[%clk 0:02:14]}  Nh5 {[%clk 0:02:04]} 14. Be3 {[%clk 0:02:07]}  Bg5 {[%clk 0:02:03]} 15. Qd2 {[%clk 0:02:01]}  Bxe3+ {[%clk 0:01:51]} 16. Qxe3 {[%clk 0:02:02]}  Ne5 {[%clk 0:01:48]} 17. Ng4 {[%clk 0:01:53]}  Nxg4 {[%clk 0:01:43]} 18. hxg4 {[%clk 0:01:53]}  Nf6 {[%clk 0:01:43]} 19. g5 {[%clk 0:01:46]}  Ng4 {[%clk 0:01:42]} 20. Qf4 {[%clk 0:01:39]}  Ne5 {[%clk 0:01:41]} 21. Rae1 {[%clk 0:01:23]}  h6 {[%clk 0:01:38]} 22. gxh6 {[%clk 0:01:23]}  Rxh6 {[%clk 0:01:38]} 23. Kf2 {[%clk 0:01:22]}  Bh5 {[%clk 0:01:26]} 24. Ke3 {[%clk 0:01:15]}  Qe7 {[%clk 0:01:19]} 25. Kd2 {[%clk 0:01:14]}  O-O-O {[%clk 0:01:17]} 26. Kc1 {[%clk 0:01:11]}  Rdh8 {[%clk 0:01:14]} 27. Nd1 {[%clk 0:01:05]}  Rf6 {[%clk 0:01:08]} 28. Qe3 {[%clk 0:01:01]}  Rxf1 {[%clk 0:01:05]} 29. Rxf1 {[%clk 0:01:02]}  Bxd1 {[%clk 0:01:04]} 30. Rxd1 {[%clk 0:00:58]}  Kb8 {[%clk 0:01:04]} 31. Rf1 {[%clk 0:00:58]}  Rh5 {[%clk 0:01:00]} 32. Be2 {[%clk 0:00:53]}  Qg5 {[%clk 0:00:59]} 33. Qxg5 {[%clk 0:00:50]}  Rxg5 {[%clk 0:01:00]} 34. Rf2 {[%clk 0:00:50]}  Rg3 {[%clk 0:00:57]} 35. Kd2 {[%clk 0:00:49]}  a5 {[%clk 0:00:56]} 36. a4 {[%clk 0:00:45]}  Ka7 {[%clk 0:00:55]} 37. Ke1 {[%clk 0:00:39]}  Kb6 {[%clk 0:00:53]} 38. Kf1 {[%clk 0:00:37]}  Kc5 {[%clk 0:00:50]} 39. c3 {[%clk 0:00:36]}  Re3 {[%clk 0:00:44]} 40. Ke1 {[%clk 0:00:34]}  Rxe4 {[%clk 0:00:41]} 41. Kd2 {[%clk 0:00:29]}  Rxa4 {[%clk 0:00:40]} 42. Bd3 {[%clk 0:00:25]}  Rh4 {[%clk 0:00:38]} 43. g3 {[%clk 0:00:25]}  Rh3 {[%clk 0:00:36]} 44. Rg2 {[%clk 0:00:23]}  Nxd3 {[%clk 0:00:35]} 45. Kxd3 {[%clk 0:00:23]}  Kxd5 {[%clk 0:00:35]} 46. c4+ {[%clk 0:00:22]}  Kc5 {[%clk 0:00:35]} 47. Kc3 {[%clk 0:00:22]}  f6 {[%clk 0:00:34]} 48. Kd3 {[%clk 0:00:22]}  f5 {[%clk 0:00:29]} 49. Ke3 {[%clk 0:00:21]}  g5 {[%clk 0:00:28]} 50. Kf3 {[%clk 0:00:20]}  f4 {[%clk 0:00:27]} 51. Kg4 {[%clk 0:00:20]}  Rxg3+ {[%clk 0:00:27]} 52. Rxg3 {[%clk 0:00:20]}  fxg3 {[%clk 0:00:28]} 53. Kxg3 {[%clk 0:00:21]}  Kxc4 {[%clk 0:00:28]} 54. Kg4 {[%clk 0:00:22]}  Kb3 {[%clk 0:00:28]} 55. Kxg5 {[%clk 0:00:23]}  Kxb2 {[%clk 0:00:29]} 56. Kf4 {[%clk 0:00:24]}  a4 {[%clk 0:00:28]} 57. Kf5 {[%clk 0:00:25]}  a3 {[%clk 0:00:29]} 58. Ke6 {[%clk 0:00:25]}  a2 {[%clk 0:00:30]} 59. Kd7 {[%clk 0:00:26]}  a1=Q {[%clk 0:00:30]} 60. Kxc7 {[%clk 0:00:27]}  Qa6 {[%clk 0:00:30]} 61. Kb8 {[%clk 0:00:27]}  Qc6 {[%clk 0:00:24]} 62. Ka7 {[%clk 0:00:27]}  b5 {[%clk 0:00:21]} 63. Kb8 {[%clk 0:00:28]}  Qd7 {[%clk 0:00:20]} 64. Ka8 {[%clk 0:00:28]}  Kb3 {[%clk 0:00:20]} 65. Kb8 {[%clk 0:00:25]}  Kb4 {[%clk 0:00:20]} 0-1


[Site "https://www.chess.com"]

[Event "Titled Tuesday Blitz July 11 Late 2023"]
[White "Wizard_of_Odds"]
[Black "Weetik, Vjacheslav"]
[BlackFideId "4153472"]
[WhiteElo "2399"]
[BlackElo "2715"]
[Result "0-1"]
[Round "1"]
[TimeControl "180+2"]
[Date "2023.07.11"]
[WhiteClock "0:00:00"]
[BlackClock "0:01:01"]
[Board "87"]

1. d4 {[%clk 0:02:58]}  Nf6 {[%clk 0:02:59]} 2. c4 {[%clk 0:02:58]}  g6 {[%clk 0:02:59]} 3. Nc3 {[%clk 0:02:57]}  Bg7 {[%clk 0:03:00]} 4. e4 {[%clk 0:02:57]}  d6 {[%clk 0:03:01]} 5. Be2 {[%clk 0:02:57]}  O-O {[%clk 0:03:01]} 6. Nf3 {[%clk 0:02:58]}  e5 {[%clk 0:03:00]} 7. d5 {[%clk 0:02:58]}  a5 {[%clk 0:02:59]} 8. Be3 {[%clk 0:02:55]}  Ng4 {[%clk 0:02:56]} 9. Bg5 {[%clk 0:02:55]}  f6 {[%clk 0:02:56]} 10. Bh4 {[%clk 0:02:55]}  Na6 {[%clk 0:02:53]} 11. Nd2 {[%clk 0:02:54]}  Nh6 {[%clk 0:02:53]} 12. O-O {[%clk 0:02:52]}  Qe8 {[%clk 0:02:51]} 13. f3 {[%clk 0:02:51]}  f5 {[%clk 0:02:51]} 14. a3 {[%clk 0:02:41]}  Bd7 {[%clk 0:02:50]} 15. b3 {[%clk 0:02:39]}  Nf7 {[%clk 0:02:48]} 16. Bf2 {[%clk 0:02:37]}  Bh6 {[%clk 0:02:43]} 17. Qc2 {[%clk 0:02:31]}  Qe7 {[%clk 0:02:40]} 18. Rab1 {[%clk 0:02:26]}  Nc5 {[%clk 0:02:39]} 19. b4 {[%clk 0:02:19]}  axb4 {[%clk 0:02:40]} 20. axb4 {[%clk 0:02:19]}  Na4 {[%clk 0:02:40]} 21. Ra1 {[%clk 0:02:19]}  Nxc3 {[%clk 0:02:38]} 22. Qxc3 {[%clk 0:02:20]}  Rxa1 {[%clk 0:02:36]} 23. Rxa1 {[%clk 0:02:19]}  Ng5 {[%clk 0:02:25]} 24. Bd3 {[%clk 0:02:10]}  Nh3+ {[%clk 0:02:05]} 25. gxh3 {[%clk 0:02:00]}  Qg5+ {[%clk 0:02:05]} 26. Kh1 {[%clk 0:01:55]}  Qxd2 {[%clk 0:02:06]} 27. Qxd2 {[%clk 0:01:51]}  Bxd2 {[%clk 0:02:07]} 28. Ra7 {[%clk 0:01:48]}  Rb8 {[%clk 0:02:06]} 29. b5 {[%clk 0:00:53]}  fxe4 {[%clk 0:02:01]} 30. Bxe4 {[%clk 0:00:52]}  Bxh3 {[%clk 0:02:01]} 31. b6 {[%clk 0:00:43]}  cxb6 {[%clk 0:02:01]} 32. Bxb6 {[%clk 0:00:44]}  Rc8 {[%clk 0:02:01]} 33. Bd3 {[%clk 0:00:43]}  Bf5 {[%clk 0:01:57]} 34. Be2 {[%clk 0:00:38]}  e4 {[%clk 0:01:57]} 35. Kg2 {[%clk 0:00:34]}  h5 {[%clk 0:01:39]} 36. h3 {[%clk 0:00:33]}  exf3+ {[%clk 0:01:37]} 37. Bxf3 {[%clk 0:00:27]}  Rxc4 {[%clk 0:01:34]} 38. Rxb7 {[%clk 0:00:27]}  Rc2 {[%clk 0:01:30]} 39. Rb8+ {[%clk 0:00:25]}  Kf7 {[%clk 0:01:27]} 40. Rb7+ {[%clk 0:00:23]}  Ke8 {[%clk 0:01:12]} 41. Bd1 {[%clk 0:00:07]}  Rb2 {[%clk 0:01:07]} 42. Ba4+ {[%clk 0:00:04]}  Kf8 {[%clk 0:01:06]} 43. Rb8+ {[%clk 0:00:04]}  Kf7 {[%clk 0:01:04]} 44. Be8+ {[%clk 0:00:03]}  Ke7 {[%clk 0:01:03]} 45. Bd8+ {[%clk 0:00:02]}  Kxe8 {[%clk 0:01:03]} 46. Rxb2 {[%clk 0:00:03]}  Bc3 {[%clk 0:01:01]} 47. Rb3 {[%clk 0:00:02]}  Be5 {[%clk 0:00:59]} 48. Rb8 {[%clk 0:00:02]}  Be4+ {[%clk 0:01:00]} 49. Kf2 {[%clk 0:00:00]}  Kd7 {[%clk 0:01:01]} 0-1


[Site "https://www.chess.com"]

[Event "Titled Tuesday Blitz July 11 Late 2023"]
[White "Seletsky, Grigory"]
[Black "Basso, Pier Luigi"]
[WhiteFideId "14112191"]
[BlackFideId "866970"]
[WhiteElo "2395"]
[BlackElo "2714"]
[Result "1-0"]
[Round "1"]
[TimeControl "180+2"]
[Date "2023.07.11"]
[WhiteClock "0:00:06"]
[BlackClock "0:01:03"]
[Board "89"]

1. e4 {[%clk 0:03:00]}  c6 {[%clk 0:02:57]} 2. d4 {[%clk 0:02:57]}  d5 {[%clk 0:02:58]} 3. Nd2 {[%clk 0:02:57]}  dxe4 {[%clk 0:02:58]} 4. Nxe4 {[%clk 0:02:57]}  Nf6 {[%clk 0:02:59]} 5. Ng3 {[%clk 0:02:54]}  g6 {[%clk 0:02:56]} 6. h3 {[%clk 0:02:53]}  Bg7 {[%clk 0:02:56]} 7. Nf3 {[%clk 0:02:54]}  O-O {[%clk 0:02:56]} 8. Bc4 {[%clk 0:02:54]}  Nbd7 {[%clk 0:02:55]} 9. O-O {[%clk 0:02:55]}  b6 {[%clk 0:02:55]} 10. Re1 {[%clk 0:02:50]}  Bb7 {[%clk 0:02:55]} 11. Qe2 {[%clk 0:02:50]}  e6 {[%clk 0:02:55]} 12. c3 {[%clk 0:02:43]}  c5 {[%clk 0:02:52]} 13. Bd2 {[%clk 0:02:37]}  Re8 {[%clk 0:02:49]} 14. Rad1 {[%clk 0:02:36]}  Qc7 {[%clk 0:02:46]} 15. Bd3 {[%clk 0:02:11]}  Rad8 {[%clk 0:02:40]} 16. Ne4 {[%clk 0:02:10]}  Nxe4 {[%clk 0:02:40]} 17. Bxe4 {[%clk 0:02:09]}  Bxe4 {[%clk 0:02:41]} 18. Qxe4 {[%clk 0:02:09]}  cxd4 {[%clk 0:02:40]} 19. Nxd4 {[%clk 0:02:06]}  Nc5 {[%clk 0:02:40]} 20. Qe2 {[%clk 0:02:03]}  Bxd4 {[%clk 0:02:38]} 21. cxd4 {[%clk 0:02:03]}  Rxd4 {[%clk 0:02:39]} 22. Bc3 {[%clk 0:01:59]}  Rxd1 {[%clk 0:02:39]} 23. Rxd1 {[%clk 0:01:58]}  e5 {[%clk 0:02:37]} 24. f4 {[%clk 0:01:52]}  e4 {[%clk 0:02:31]} 25. Qd2 {[%clk 0:01:30]}  Nd3 {[%clk 0:02:30]} 26. f5 {[%clk 0:01:25]}  Qc5+ {[%clk 0:02:27]} 27. Kh2 {[%clk 0:01:24]}  Qxf5 {[%clk 0:02:28]} 28. Kg1 {[%clk 0:01:13]}  e3 {[%clk 0:02:14]} 29. Qxd3 {[%clk 0:01:11]}  Qf2+ {[%clk 0:02:07]} 30. Kh2 {[%clk 0:01:09]}  e2 {[%clk 0:02:08]} 31. Re1 {[%clk 0:01:06]}  h6 {[%clk 0:01:47]} 32. Qd4 {[%clk 0:01:05]}  Qxd4 {[%clk 0:01:47]} 33. Bxd4 {[%clk 0:01:05]}  g5 {[%clk 0:01:47]} 34. Kg3 {[%clk 0:01:04]}  Kh7 {[%clk 0:01:47]} 35. Kf2 {[%clk 0:01:01]}  Rd8 {[%clk 0:01:47]} 36. Bc3 {[%clk 0:01:00]}  Kg6 {[%clk 0:01:47]} 37. Rxe2 {[%clk 0:01:00]}  Rd7 {[%clk 0:01:47]} 38. a4 {[%clk 0:00:56]}  h5 {[%clk 0:01:47]} 39. a5 {[%clk 0:00:56]}  bxa5 {[%clk 0:01:45]} 40. Re5 {[%clk 0:00:56]}  h4 {[%clk 0:01:46]} 41. Rxa5 {[%clk 0:00:55]}  f5 {[%clk 0:01:43]} 42. Ra6+ {[%clk 0:00:53]}  Kh5 {[%clk 0:01:43]} 43. Rf6 {[%clk 0:00:52]}  Rd5 {[%clk 0:01:43]} 44. Ke3 {[%clk 0:00:44]}  f4+ {[%clk 0:01:34]} 45. Ke4 {[%clk 0:00:43]}  Rd1 {[%clk 0:01:33]} 46. Ra6 {[%clk 0:00:33]}  Rg1 {[%clk 0:01:31]} 47. Kf3 {[%clk 0:00:32]}  Rf1+ {[%clk 0:01:32]} 48. Ke2 {[%clk 0:00:32]}  Rg1 {[%clk 0:01:31]} 49. Kf2 {[%clk 0:00:32]}  Rc1 {[%clk 0:01:32]} 50. Rxa7 {[%clk 0:00:32]}  Rc2+ {[%clk 0:01:27]} 51. Kf3 {[%clk 0:00:32]}  Rc1 {[%clk 0:01:28]} 52. Rd7 {[%clk 0:00:31]}  Rf1+ {[%clk 0:01:26]} 53. Ke2 {[%clk 0:00:31]}  Rc1 {[%clk 0:01:27]} 54. Kf2 {[%clk 0:00:30]}  Rc2+ {[%clk 0:01:26]} 55. Rd2 {[%clk 0:00:30]}  Rc1 {[%clk 0:01:27]} 56. Ke2 {[%clk 0:00:29]}  Rg1 {[%clk 0:01:25]} 57. Kd3 {[%clk 0:00:29]}  g4 {[%clk 0:01:23]} 58. hxg4+ {[%clk 0:00:28]}  Kxg4 {[%clk 0:01:24]} 59. Bd4 {[%clk 0:00:27]}  Rb1 {[%clk 0:01:23]} 60. Kc4 {[%clk 0:00:24]}  Kg3 {[%clk 0:01:21]} 61. b4 {[%clk 0:00:24]}  Rc1+ {[%clk 0:01:22]} 62. Kd5 {[%clk 0:00:23]}  Rb1 {[%clk 0:01:22]} 63. Bc5 {[%clk 0:00:22]}  f3 {[%clk 0:01:20]} 64. gxf3 {[%clk 0:00:22]}  h3 {[%clk 0:01:21]} 65. Bd6+ {[%clk 0:00:21]}  Kxf3 {[%clk 0:01:21]} 66. Kc6 {[%clk 0:00:18]}  Rc1+ {[%clk 0:01:22]} 67. Kd7 {[%clk 0:00:18]}  Rb1 {[%clk 0:01:22]} 68. Rh2 {[%clk 0:00:17]}  Kg4 {[%clk 0:01:21]} 69. Kc6 {[%clk 0:00:17]}  Rc1+ {[%clk 0:01:22]} 70. Kd7 {[%clk 0:00:17]}  Rb1 {[%clk 0:01:21]} 71. Rc2 {[%clk 0:00:16]}  Rb3 {[%clk 0:01:20]} 72. Kc6 {[%clk 0:00:15]}  Rb1 {[%clk 0:00:52]} 73. b5 {[%clk 0:00:14]}  Rg1 {[%clk 0:00:53]} 74. b6 {[%clk 0:00:13]}  Rg2 {[%clk 0:00:54]} 75. Rxg2+ {[%clk 0:00:12]}  hxg2 {[%clk 0:00:55]} 76. Bc5 {[%clk 0:00:12]}  Kf4 {[%clk 0:00:55]} 77. b7 {[%clk 0:00:12]}  Kg4 {[%clk 0:00:56]} 78. b8=Q {[%clk 0:00:12]}  Kh3 {[%clk 0:00:57]} 79. Qf8 {[%clk 0:00:11]}  g1=Q {[%clk 0:00:58]} 80. Bxg1 {[%clk 0:00:10]}  Kg2 {[%clk 0:00:58]} 81. Bd4 {[%clk 0:00:10]}  Kh1 {[%clk 0:00:59]} 82. Qf5 {[%clk 0:00:09]}  Kg2 {[%clk 0:01:00]} 83. Bg7 {[%clk 0:00:09]}  Kh1 {[%clk 0:01:01]} 84. Qf3+ {[%clk 0:00:08]}  Kh2 {[%clk 0:01:01]} 85. Qg4 {[%clk 0:00:06]}  Kh1 {[%clk 0:01:01]} 86. Bd4 {[%clk 0:00:06]}  Kh2 {[%clk 0:01:02]} 87. Kd5 {[%clk 0:00:06]}  Kh1 {[%clk 0:01:03]} 88. Qg1# {[%clk 0:00:06]} 1-0


[Site "https://www.chess.com"]

[Event "Titled Tuesday Blitz July 11 Late 2023"]
[White "Jaferian, Koosha"]
[Black "dodoucb"]
[WhiteFideId "12507440"]
[WhiteElo "2713"]
[BlackElo "2395"]
[Result "1-0"]
[Round "1"]
[TimeControl "180+2"]
[Date "2023.07.11"]
[WhiteClock "0:00:45"]
[BlackClock "0:00:00"]
[Board "90"]

1. e4 {[%clk 0:03:00]}  c6 {[%clk 0:02:59]} 2. d4 {[%clk 0:02:57]}  d5 {[%clk 0:02:58]} 3. exd5 {[%clk 0:02:58]}  cxd5 {[%clk 0:02:57]} 4. Bd3 {[%clk 0:02:59]}  Nf6 {[%clk 0:02:56]} 5. c3 {[%clk 0:02:59]}  Bg4 {[%clk 0:02:52]} 6. Qb3 {[%clk 0:02:58]}  Qd7 {[%clk 0:02:48]} 7. Nd2 {[%clk 0:02:54]}  Nc6 {[%clk 0:02:40]} 8. Ngf3 {[%clk 0:02:54]}  e6 {[%clk 0:02:40]} 9. O-O {[%clk 0:02:54]}  Bd6 {[%clk 0:02:39]} 10. h3 {[%clk 0:02:53]}  Bh5 {[%clk 0:02:39]} 11. Re1 {[%clk 0:02:53]}  Qc7 {[%clk 0:02:02]} 12. Bb5 {[%clk 0:02:39]}  Nd7 {[%clk 0:01:54]} 13. Nh4 {[%clk 0:02:24]}  O-O {[%clk 0:01:42]} 14. Bd3 {[%clk 0:02:22]}  Nf6 {[%clk 0:01:15]} 15. Be2 {[%clk 0:02:18]}  Bxe2 {[%clk 0:01:07]} 16. Rxe2 {[%clk 0:02:19]}  Rfe8 {[%clk 0:01:02]} 17. Nhf3 {[%clk 0:02:19]}  e5 {[%clk 0:01:01]} 18. dxe5 {[%clk 0:02:20]}  Nxe5 {[%clk 0:00:59]} 19. Nxe5 {[%clk 0:02:16]}  Bxe5 {[%clk 0:00:56]} 20. Qd1 {[%clk 0:02:10]}  Bh2+ {[%clk 0:00:51]} 21. Kh1 {[%clk 0:02:10]}  Rxe2 {[%clk 0:00:51]} 22. Qxe2 {[%clk 0:02:11]}  Re8 {[%clk 0:00:51]} 23. Qf1 {[%clk 0:01:58]}  Bd6 {[%clk 0:00:14]} 24. Nf3 {[%clk 0:01:57]}  Ne4 {[%clk 0:00:14]} 25. Be3 {[%clk 0:01:55]}  h6 {[%clk 0:00:14]} 26. Re1 {[%clk 0:01:55]}  a6 {[%clk 0:00:14]} 27. Bd4 {[%clk 0:01:49]}  Bc5 {[%clk 0:00:11]} 28. Bxc5 {[%clk 0:01:43]}  Qxc5 {[%clk 0:00:11]} 29. Nd4 {[%clk 0:01:44]}  Re7 {[%clk 0:00:08]} 30. Kg1 {[%clk 0:01:42]}  b5 {[%clk 0:00:07]} 31. a3 {[%clk 0:01:37]}  Nd2 {[%clk 0:00:07]} 32. Rxe7 {[%clk 0:01:27]}  Nxf1 {[%clk 0:00:07]} 33. Re8+ {[%clk 0:01:28]}  Kh7 {[%clk 0:00:08]} 34. Kxf1 {[%clk 0:01:29]}  Qc4+ {[%clk 0:00:08]} 35. Re2 {[%clk 0:01:29]}  Qd3 {[%clk 0:00:07]} 36. f3 {[%clk 0:01:25]}  a5 {[%clk 0:00:07]} 37. Kf2 {[%clk 0:01:19]}  b4 {[%clk 0:00:07]} 38. axb4 {[%clk 0:01:19]}  axb4 {[%clk 0:00:07]} 39. Rc2 {[%clk 0:01:20]}  bxc3 {[%clk 0:00:06]} 40. bxc3 {[%clk 0:01:21]}  Qd1 {[%clk 0:00:06]} 41. Re2 {[%clk 0:01:17]}  Qd3 {[%clk 0:00:06]} 42. Re3 {[%clk 0:01:16]}  Qd2+ {[%clk 0:00:06]} 43. Ne2 {[%clk 0:01:16]}  f5 {[%clk 0:00:05]} 44. g3 {[%clk 0:01:07]}  Qd1 {[%clk 0:00:04]} 45. Re5 {[%clk 0:01:05]}  Qd3 {[%clk 0:00:04]} 46. Re3 {[%clk 0:01:03]}  Qd2 {[%clk 0:00:04]} 47. Re5 {[%clk 0:01:02]}  Qd3 {[%clk 0:00:04]} 48. Re3 {[%clk 0:00:58]}  Qd2 {[%clk 0:00:04]} 49. h4 {[%clk 0:00:58]}  Kh8 {[%clk 0:00:04]} 50. h5 {[%clk 0:00:54]}  Kh7 {[%clk 0:00:04]} 51. Re8 {[%clk 0:00:51]}  Qd1 {[%clk 0:00:04]} 52. Nf4 {[%clk 0:00:45]}  Qd2+ {[%clk 0:00:00]} 53. Kg1 {[%clk 0:00:45]} 1-0


[Site "https://www.chess.com"]

[Event "Titled Tuesday Blitz July 11 Late 2023"]
[White "Cooklev, Steven"]
[Black "caropawn10"]
[WhiteFideId "2050552"]
[WhiteElo "2393"]
[BlackElo "2709"]
[Result "0-1"]
[Round "1"]
[TimeControl "180+2"]
[Date "2023.07.11"]
[WhiteClock "0:00:07"]
[BlackClock "0:01:40"]
[Board "91"]

1. e4 {[%clk 0:02:58]}  c6 {[%clk 0:02:59]} 2. Nc3 {[%clk 0:02:58]}  d5 {[%clk 0:02:59]} 3. Nf3 {[%clk 0:02:59]}  dxe4 {[%clk 0:03:00]} 4. Nxe4 {[%clk 0:02:59]}  Nf6 {[%clk 0:03:00]} 5. Nxf6+ {[%clk 0:03:00]}  exf6 {[%clk 0:03:01]} 6. Bc4 {[%clk 0:03:00]}  Be7 {[%clk 0:03:01]} 7. O-O {[%clk 0:03:00]}  O-O {[%clk 0:03:02]} 8. Re1 {[%clk 0:03:00]}  Bd6 {[%clk 0:03:02]} 9. d4 {[%clk 0:03:00]}  Nd7 {[%clk 0:03:00]} 10. Bb3 {[%clk 0:02:49]}  b5 {[%clk 0:02:55]} 11. a4 {[%clk 0:02:47]}  Nb6 {[%clk 0:02:52]} 12. axb5 {[%clk 0:02:45]}  cxb5 {[%clk 0:02:52]} 13. Qd3 {[%clk 0:02:42]}  Bd7 {[%clk 0:02:45]} 14. Bd2 {[%clk 0:02:39]}  Qc8 {[%clk 0:02:41]} 15. c3 {[%clk 0:02:33]}  Nc4 {[%clk 0:02:40]} 16. Bc1 {[%clk 0:02:25]}  a5 {[%clk 0:02:39]} 17. h3 {[%clk 0:02:15]}  Bf5 {[%clk 0:02:38]} 18. Qd1 {[%clk 0:02:10]}  Qd7 {[%clk 0:02:33]} 19. Nh4 {[%clk 0:02:06]}  Bxh3 {[%clk 0:02:16]} 20. gxh3 {[%clk 0:02:02]}  Qxh3 {[%clk 0:02:17]} 21. Nf3 {[%clk 0:01:49]}  g5 {[%clk 0:02:16]} 22. Bxc4 {[%clk 0:01:17]}  bxc4 {[%clk 0:02:17]} 23. Qe2 {[%clk 0:01:06]}  g4 {[%clk 0:02:13]} 24. Qf1 {[%clk 0:01:05]}  Qxf3 {[%clk 0:02:08]} 25. Qg2 {[%clk 0:01:01]}  Qxg2+ {[%clk 0:02:07]} 26. Kxg2 {[%clk 0:01:02]}  f5 {[%clk 0:02:07]} 27. Bg5 {[%clk 0:00:14]}  f6 {[%clk 0:01:50]} 28. Bd2 {[%clk 0:00:11]}  Kf7 {[%clk 0:01:49]} 29. Ra4 {[%clk 0:00:11]}  Rfc8 {[%clk 0:01:48]} 30. Rea1 {[%clk 0:00:10]}  Rab8 {[%clk 0:01:48]} 31. Bc1 {[%clk 0:00:11]}  Rb5 {[%clk 0:01:43]} 32. Rxa5 {[%clk 0:00:11]}  Rxa5 {[%clk 0:01:44]} 33. Rxa5 {[%clk 0:00:12]}  Kg6 {[%clk 0:01:44]} 34. Rd5 {[%clk 0:00:11]}  Rc6 {[%clk 0:01:40]} 35. Rc5 {[%clk 0:00:07]}  Bxc5 {[%clk 0:01:40]} 0-1


[Site "https://www.chess.com"]

[Event "Titled Tuesday Blitz July 11 Late 2023"]
[White "Rosen, Eric"]
[Black "Campos, Maria Jose"]
[WhiteFideId "2032562"]
[BlackFideId "146803"]
[WhiteElo "2702"]
[BlackElo "2389"]
[Result "1-0"]
[Round "1"]
[TimeControl "180+2"]
[Date "2023.07.11"]
[WhiteClock "0:00:13"]
[BlackClock "0:01:33"]
[Board "92"]

1. d4 {[%clk 0:02:27]}  Nf6 {[%clk 0:03:00]} 2. Bf4 {[%clk 0:02:18]}  d5 {[%clk 0:03:00]} 3. e3 {[%clk 0:02:14]}  e6 {[%clk 0:02:56]} 4. Nf3 {[%clk 0:02:13]}  c5 {[%clk 0:02:55]} 5. c3 {[%clk 0:02:13]}  Nc6 {[%clk 0:02:56]} 6. Nbd2 {[%clk 0:02:13]}  Bd6 {[%clk 0:02:56]} 7. Bg3 {[%clk 0:02:11]}  O-O {[%clk 0:02:55]} 8. Bb5 {[%clk 0:02:12]}  Qe7 {[%clk 0:02:52]} 9. Bxc6 {[%clk 0:02:10]}  bxc6 {[%clk 0:02:53]} 10. Qa4 {[%clk 0:02:11]}  cxd4 {[%clk 0:02:51]} 11. cxd4 {[%clk 0:01:55]}  Bd7 {[%clk 0:02:39]} 12. Bxd6 {[%clk 0:01:35]}  Qxd6 {[%clk 0:02:39]} 13. Nb3 {[%clk 0:01:35]}  Ne4 {[%clk 0:02:38]} 14. O-O {[%clk 0:01:31]}  c5 {[%clk 0:02:37]} 15. dxc5 {[%clk 0:01:26]}  Bxa4 {[%clk 0:02:34]} 16. cxd6 {[%clk 0:01:26]}  Nxd6 {[%clk 0:02:33]} 17. Nc5 {[%clk 0:01:25]}  Bb5 {[%clk 0:02:33]} 18. Rfc1 {[%clk 0:01:25]}  a5 {[%clk 0:02:34]} 19. Nd4 {[%clk 0:01:24]}  Rfc8 {[%clk 0:02:32]} 20. f3 {[%clk 0:01:08]}  Bc4 {[%clk 0:02:31]} 21. b3 {[%clk 0:01:08]}  Rxc5 {[%clk 0:02:30]} 22. bxc4 {[%clk 0:01:08]}  Nxc4 {[%clk 0:02:30]} 23. Rab1 {[%clk 0:01:06]}  g6 {[%clk 0:02:27]} 24. Kf2 {[%clk 0:01:02]}  Rac8 {[%clk 0:02:26]} 25. Nb3 {[%clk 0:01:01]}  R5c7 {[%clk 0:02:24]} 26. Nd4 {[%clk 0:00:53]}  Na3 {[%clk 0:02:23]} 27. Rxc7 {[%clk 0:00:53]}  Rxc7 {[%clk 0:02:24]} 28. Rb3 {[%clk 0:00:49]}  Nc2 {[%clk 0:02:22]} 29. Rb8+ {[%clk 0:00:44]}  Kg7 {[%clk 0:02:22]} 30. Nb5 {[%clk 0:00:45]}  Rc6 {[%clk 0:02:15]} 31. Rb7 {[%clk 0:00:41]}  Nb4 {[%clk 0:02:13]} 32. Nd4 {[%clk 0:00:40]}  Rd6 {[%clk 0:02:07]} 33. a3 {[%clk 0:00:41]}  Nd3+ {[%clk 0:02:06]} 34. Ke2 {[%clk 0:00:39]}  Nc5 {[%clk 0:02:07]} 35. Rb5 {[%clk 0:00:37]}  Nd7 {[%clk 0:02:00]} 36. Rxa5 {[%clk 0:00:36]}  Kf6 {[%clk 0:02:01]} 37. Ra7 {[%clk 0:00:36]}  Ne5 {[%clk 0:01:59]} 38. f4 {[%clk 0:00:35]}  Nc4 {[%clk 0:01:59]} 39. Nf3 {[%clk 0:00:33]}  h6 {[%clk 0:01:57]} 40. g4 {[%clk 0:00:31]}  Rb6 {[%clk 0:01:56]} 41. g5+ {[%clk 0:00:31]}  hxg5 {[%clk 0:01:52]} 42. Nxg5 {[%clk 0:00:32]}  Nd6 {[%clk 0:01:52]} 43. h3 {[%clk 0:00:25]}  Rb2+ {[%clk 0:01:48]} 44. Kf3 {[%clk 0:00:25]}  Rb3 {[%clk 0:01:48]} 45. a4 {[%clk 0:00:23]}  d4 {[%clk 0:01:48]} 46. Rd7 {[%clk 0:00:15]}  Rxe3+ {[%clk 0:01:47]} 47. Kg4 {[%clk 0:00:13]}  Ra3 {[%clk 0:01:32]} 48. Rxd6 {[%clk 0:00:13]}  Rxa4 {[%clk 0:01:33]} 49. Rd7 {[%clk 0:00:13]}  e5 {[%clk 0:01:33]} 50. Rxf7# {[%clk 0:00:13]} 1-0


[Site "https://www.chess.com"]